bitfinex-derivatives/quotes_ETHF0:USTF0_20241008
["timestamp","ask_amount","ask_price","bid_price","bid_amount"]
[1728416933753,0.87728,2443.8,2443.7,0.40939]
[1728416934052,1.33954,2444.1,2444.0,0.40934]
[1728416934256,1.33954,2444.1,2444.0,1.18]
[1728416934559,0.40934,2444.0,2443.9,1.18]
[1728416934757,5.43074,2444.1,2443.7,1.58939]
[1728416934955,0.40938,2443.8,2443.7,1.58939]
[1728416940767,0.40935,2444.0,2443.9,0.40934]
[1728416940960,0.40934,2444.0,2443.9,1.58934]
[1728416941264,0.40934,2444.0,2443.9,1.18]
[1728416941657,0.40934,2444.0,2443.9,1.58936]
[1728416943363,0.40934,2444.0,2443.9,1.18]
[1728416943767,10.092,2444.0,2443.3,0.40945]
[1728416943967,2.1102,2444.1,2443.2,3.37466166]
[1728416943968,0.40944,2443.4,2443.2,3.27966166]
[1728416944163,0.85976,2443.3,2443.2,2.77344752]
[1728416944561,0.4503,2443.3,2443.2,2.00292752]
[1728416944762,0.4503,2443.3,2443.2,3.18292752]
[1728416945365,0.40945,2443.4,2443.3,0.40945]
[1728416945764,0.40945,2443.4,2443.3,0.89125]
[1728416946370,0.40945,2443.4,2443.3,0.4818]
[1728416946671,0.40945,2443.4,2443.3,0.89126]
[1728416946871,0.4503,2443.5,2443.3,0.4818]
[1728416947071,0.4503,2443.5,2443.4,1.58944]
[1728416947971,0.85973,2443.5,2443.4,1.58944]
[1728416951071,0.85973,2443.5,2443.4,0.40944]
[1728416951280,0.40944,2443.4,2443.3,2.07126]
[1728416951773,0.40946,2443.3,2443.2,1.58948]
[1728416951964,0.40946,2443.3,2443.2,1.18]
[1728416951965,1.33596,2443.3,2443.2,1.18]
[1728416959276,5.0193,2443.3,2442.9,1.18]
[1728416959579,0.40951,2443.0,2442.9,1.18]
[1728416960078,0.85571,2443.0,2442.9,1.58953]
[1728416960870,0.40953,2442.9,2442.8,0.4479]
[1728416961078,0.4096,2442.5,2442.4,0.095]
[1728416961269,0.4096,2442.5,2442.2,0.4637]
[1728416961270,0.40963,2442.3,2442.2,0.4637]
[1728416961473,0.40963,2442.3,2441.9,3.71248]
[1728416961474,0.40968,2442.0,2441.9,3.71248]
[1728416961674,0.40968,2442.0,2441.9,3.2078]
[1728416962488,4.50488,2442.0,2441.9,3.2078]
[1728416962773,0.40968,2442.0,2441.9,3.2078]
[1728416962980,1.79743,2442.4,2441.9,9.863]
[1728416963278,0.9063,2442.4,2442.3,0.40963]
[1728416963483,0.40963,2442.3,2442.1,2.56]
[1728416963781,0.40963,2442.3,2442.2,0.40964]
[1728416963975,0.40963,2442.3,2442.1,2.56]
[1728416964174,1.93035,2442.4,2442.0,3.89897]
[1728416964374,0.40968,2442.0,2441.9,3.2078]
[1728416964773,4.50488,2442.0,2441.9,3.2078]
[1728416966083,0.40968,2442.0,2441.9,3.2078]
[1728416966381,4.0952,2442.0,2441.7,0.40972]
[1728416966576,0.40971,2441.8,2441.7,0.40972]
[1728416967682,0.40973,2441.7,2441.6,2.96974]
[1728416968573,0.40973,2441.7,2441.6,2.56]
[1728416968778,0.40973,2441.7,2441.6,2.96975]
[1728416969175,0.40973,2441.7,2441.6,2.56]
[1728416969777,4.0952,2441.7,2441.3,3.2078]
[1728416969981,4.0952,2441.7,2441.2,0.095]
[1728416969982,0.4098,2441.3,2441.2,0.095]
[1728416970189,0.40981,2441.2,2441.1,0.40982]
[1728416970484,0.40983,2441.1,2441.0,0.87594]
[1728416970684,0.40983,2441.1,2441.0,0.40984]
[1728416971677,0.40982,2441.2,2441.1,0.40983]
[1728416972874,0.40983,2441.1,2441.0,2.96984]
[1728416973282,0.40983,2441.2,2441.0,2.96984]
[1728416973587,0.40983,2441.2,2441.1,0.40983]
[1728416973880,0.4639,2441.3,2441.0,2.96984]
[1728416973881,0.40983,2441.1,2441.0,2.96984]
[1728416974683,0.4639,2441.3,2441.0,2.56]
[1728416974984,0.40982,2441.2,2441.1,0.40982]
[1728416975685,0.40983,2441.1,2441.0,2.96983]
[1728416976085,0.4639,2441.3,2440.8,3.0149]
[1728416976281,0.40986,2441.0,2440.9,0.40986]
[1728416976593,0.40986,2441.0,2440.5,1.02484]
[1728416976594,0.40989,2440.8,2440.5,2.56]
[1728416976790,0.8934,2440.7,2440.6,0.4099]
[1728416976987,0.2781927,2440.7,2440.6,0.4099]
[1728416977185,0.40991,2440.6,2440.5,2.96992]
[1728416977483,0.40991,2440.6,2439.6,1.372]
[1728416977484,1.02476,2440.7,2440.1,5.8628]
[1728416977691,0.40995,2440.5,2440.1,5.7678]
[1728416977988,0.40996,2440.4,2440.3,0.40996]
[1728416978285,4.23264,2440.5,2440.1,5.7678]
[1728416978487,4.23264,2440.5,2440.2,0.40997]
[1728416978784,0.40997,2440.3,2440.2,0.40997]
[1728416979192,0.40998,2440.2,2440.1,3.2078]
[1728416979990,0.87115,2440.4,2440.3,0.40997]
[1728416980187,4.5588,2440.4,2440.3,0.40997]
[1728416980487,3.61773,2440.5,2440.4,0.40995]
[1728416980690,4.0976,2440.5,2440.1,3.2078]
[1728416980892,0.40997,2440.3,2440.2,0.40997]
[1728416981089,0.40997,2440.3,2440.1,3.6577]
[1728416981090,3.2078,2440.5,2440.1,3.6577]
[1728416981387,3.2078,2440.5,2440.3,0.40996]
[1728416981695,3.61774,2440.5,2440.4,0.40995]
[1728416981998,0.86549,2440.8,2440.4,2.56]
[1728416982293,0.86549,2440.8,2440.3,2.56]
[1728416982294,3.61771,2440.7,2440.3,2.56]
[1728416982484,3.61771,2440.7,2440.6,0.40991]
[1728416982689,3.61771,2440.7,2440.2,1.43494]
[1728416982690,0.40991,2440.7,2440.2,1.43494]
[1728416982899,0.40994,2440.5,2440.4,0.40994]
[1728416983095,3.61774,2440.5,2440.4,0.40994]
[1728416983994,0.40993,2440.6,2440.1,4.68269]
[1728416984193,3.2078,2440.6,2440.2,1.02495]
[1728416984387,3.2078,2440.6,2440.5,0.40993]
[1728416984890,0.4556,2440.8,2440.3,1.49011]
[1728416985087,0.40991,2440.7,2440.6,0.40991]
[1728416985492,0.86549,2440.8,2440.7,0.4099]
[1728416985893,4.5524,2440.8,2440.5,0.4799]
[1728416986094,0.40991,2440.7,2440.6,0.4099]
[1728416986788,0.40991,2440.6,2440.5,0.88982]
[1728416986989,0.40991,2440.6,2440.5,0.4799]
[1728416987195,0.40991,2440.6,2440.1,4.68268]
[1728416987196,4.0976,2440.6,2440.1,3.6577]
[1728416987395,0.40998,2440.3,2440.2,0.40997]
[1728416987590,1.92364,2440.5,2440.2,0.40997]
[1728416987799,0.40998,2440.3,2440.2,0.40997]
[1728416988495,0.40997,2440.3,2440.2,0.40998]
[1728416988999,0.40995,2440.4,2440.3,0.40995]
[1728416989191,0.8988,2440.5,2440.1,3.6577]
[1728416989497,0.8988,2440.5,2440.4,0.40995]
[1728416989498,0.4464,2440.5,2440.4,0.40995]
[1728416989699,0.85633,2440.5,2440.4,0.40995]
[1728416990002,4.95393,2440.5,2440.4,0.40995]
[1728416990892,0.85633,2440.5,2440.4,0.40995]
[1728416991092,4.95393,2440.5,2440.4,0.40995]
[1728416993691,4.544,2440.5,2440.1,0.4499]
[1728416993998,0.40997,2440.3,2440.2,0.40997]
[1728416994205,0.41,2440.1,2440.0,0.88991]
[1728416994503,0.41002,2440.0,2439.9,0.41002]
[1728416995291,8.4746,2440.0,2439.4,0.095]
[1728416995502,0.4101,2439.6,2439.5,0.41009]
[1728416996008,0.41008,2439.7,2439.6,0.41008]
[1728416996304,0.41007,2439.7,2439.6,0.41007]
[1728416996611,0.41007,2439.7,2439.3,6.79313]
[1728416996612,2.8622,2439.9,2439.3,4.23313]
[1728416996901,0.41007,2439.8,2439.7,0.41006]
[1728416997304,0.4101,2439.6,2439.5,0.41009]
[1728416997509,0.41008,2439.7,2439.6,0.41008]
[1728416999305,0.41008,2439.7,2439.3,4.23314]
[1728416999306,0.41011,2439.5,2439.4,0.4101]
[1728417000206,4.50931,2439.5,2439.2,0.9484]
[1728417000402,2.56,2439.4,2438.9,3.2078]
[1728417000603,0.4639,2439.3,2438.9,3.2078]
[1728417000902,0.41016,2439.2,2439.1,0.41016]
[1728417001107,0.89006,2439.2,2439.1,0.41016]
[1728417001409,6.2326,2439.6,2439.4,0.41011]
[1728417001608,0.89,2439.5,2439.4,0.41011]
[1728417002099,0.4799,2439.5,2439.4,0.41011]
[1728417002305,0.4648,2439.6,2439.1,1.02542]
[1728417002511,0.87488,2439.6,2439.5,0.4101]
[1728417003311,0.4648,2439.6,2439.3,0.4861]
[1728417003509,0.41011,2439.5,2439.4,0.41011]
[1728417003705,0.4648,2439.6,2439.3,0.4861]
[1728417003905,0.87489,2439.6,2439.5,0.4101]
[1728417004612,0.4648,2439.6,2439.5,0.4101]
[1728417005410,0.4648,2439.6,2439.3,0.4861]
[1728417005814,0.88996,2439.8,2439.7,0.41007]
[1728417006007,0.4799,2439.8,2439.7,0.41007]
[1728417006203,0.4698,2439.9,2439.8,0.41005]
[1728417006408,0.4698,2439.9,2439.4,1.0253]
[1728417006609,0.4698,2439.9,2439.5,0.9397]
[1728417006804,0.87984,2439.9,2439.8,0.41005]
[1728417007113,0.87984,2439.9,2439.5,1.96494]
[1728417007114,0.4698,2439.9,2439.5,1.96494]
[1728417007310,0.87984,2439.9,2439.8,0.41005]
[1728417007514,0.87983,2439.9,2439.8,0.41005]
[1728417007716,0.41005,2439.9,2439.8,0.41004]
[1728417008012,6.6564,2440.0,2439.5,1.96494]
[1728417008216,7.06642,2440.0,2439.9,0.41003]
[1728417008810,4.0964,2440.0,2439.9,0.41003]
[1728417009014,3.61782,2440.0,2439.9,0.41003]
[1728417009612,6.79286,2440.0,2439.7,0.4751]
[1728417009812,2.56,2439.8,2439.3,3.2078]
[1728417010015,0.41008,2439.7,2439.6,0.41007]
[1728417010216,0.4101,2439.6,2439.5,0.41009]
[1728417010415,0.4101,2439.6,2439.1,0.095]
[1728417010416,2.56,2439.6,2439.1,0.095]
[1728417010618,0.41015,2439.3,2439.2,0.41014]
[1728417010812,0.4576,2439.5,2439.0,0.9391]
[1728417011018,1.369,2439.8,2439.2,2.56]
[1728417011215,0.41008,2439.7,2439.6,0.41007]
[1728417011415,0.41008,2439.7,2439.5,0.41009]
[1728417011416,0.4101,2439.6,2439.5,0.41009]
[1728417012518,0.86769,2439.7,2439.6,0.41008]
[1728417012714,1.93602,2439.9,2439.3,1.02533]
[1728417012715,0.9109,2439.9,2439.4,1.02529]
[1728417012919,1.32094,2439.9,2439.8,0.41005]
[1728417014028,3.61782,2440.0,2439.9,0.41003]
[1728417015517,0.40999,2440.2,2440.1,0.41]
[1728417015822,0.41003,2440.0,2439.9,0.41002]
[1728417016011,2.97003,2440.0,2439.6,0.095]
[1728417016211,0.41007,2439.8,2439.5,0.9159]
[1728417016419,0.41008,2439.7,2439.6,0.41007]
[1728417016823,0.471,2439.8,2439.7,0.41007]
[1728417017024,0.88105,2439.8,2439.7,0.41007]
[1728417018819,2.56,2440.2,2439.5,4.1237]
[1728417019020,2.56,2440.2,2439.7,1.02515]
[1728417019317,0.41001,2440.1,2440.0,0.41]
[1728417020724,2.56,2440.2,2439.9,0.9027]
[1728417020920,2.97,2440.2,2440.1,0.41]
[1728417021315,2.96998,2440.2,2440.1,0.41]
[1728417025125,4.95907,2440.3,2439.9,1.92779]
[1728417025332,1.27927,2440.3,2440.2,0.40998]
[1728417025626,2.56,2440.4,2440.3,0.40997]
[1728417025627,2.96996,2440.4,2440.3,0.40997]
[1728417025825,0.40999,2440.3,2440.2,0.40997]
[1728417026524,0.41001,2440.1,2440.0,0.41]
[1728417027023,0.86729,2440.2,2440.1,0.41]
[1728417027926,0.41002,2440.0,2439.9,0.41002]
[1728417028526,0.41005,2439.9,2439.8,0.41002]
[1728417029220,1.32073,2440.0,2439.9,0.41003]
[1728417029422,0.41006,2439.8,2439.7,0.41005]
[1728417029627,0.41005,2439.9,2439.8,0.41003]
[1728417032026,0.41007,2439.7,2439.6,1.35487]
[1728417032333,0.4413,2439.8,2439.6,0.9448]
[1728417032631,0.85136,2439.8,2439.7,0.41007]
[1728417034826,1.32072,2440.0,2439.9,0.41003]
[1728417035022,0.41002,2440.0,2439.9,0.41003]
[1728417035321,0.41001,2440.1,2440.0,0.41]
[1728417036530,5.18928,2440.3,2440.2,0.40998]
[1728417036735,5.2452,2440.3,2439.9,0.4687]
[1728417036925,5.2452,2440.3,2440.1,0.40998]
[1728417036926,0.41,2440.2,2440.1,0.40998]
[1728417039625,5.65518,2440.3,2440.2,0.40998]
[1728417040031,9.75278,2440.3,2440.2,0.40998]
[1728417040721,8.38678,2440.3,2440.2,0.40998]
[1728417041335,8.38678,2440.3,2440.0,0.8801]
[1728417041530,0.41,2440.2,2440.1,0.40998]
[1728417046035,0.41005,2439.8,2439.7,0.095]
[1728417046238,0.4101,2439.5,2439.4,0.3906]
[1728417046539,0.4101,2439.5,2439.4,0.80072]
[1728417047236,5.7678,2439.6,2439.2,3.2078]
[1728417047440,3.61789,2439.6,2439.5,0.4101]
[1728417047831,3.2078,2439.6,2439.2,3.9945]
[1728417048133,0.41011,2439.5,2439.4,0.41011]
[1728417048928,0.41013,2439.4,2439.3,0.41013]
[1728417049833,2.56,2439.5,2439.2,3.9945]
[1728417050036,0.41009,2439.6,2439.5,0.41008]
[1728417050434,0.4133,2439.7,2439.2,5.01987]
[1728417050740,0.41006,2439.8,2439.7,0.41005]
[1728417051432,0.41007,2439.7,2439.6,1.65307]
[1728417052438,0.41006,2439.8,2439.7,0.41005]
[1728417052836,3.2078,2439.9,2439.6,1.243]
[1728417053038,0.41007,2439.7,2439.6,1.65308]
[1728417054241,2.56,2439.8,2439.7,0.41007]
[1728417054242,2.97006,2439.8,2439.7,0.41007]
[1728417054946,0.41007,2439.7,2439.6,1.65307]
[1728417055242,0.41007,2439.7,2439.6,0.8077]
[1728417055444,0.41007,2439.7,2439.6,1.21778]
[1728417055847,3.2078,2439.9,2439.6,0.8077]
[1728417056146,3.61784,2439.9,2439.8,0.41005]
[1728417056546,0.41001,2440.1,2440.0,0.41]
[1728417059042,6.7927,2440.4,2440.0,4.0984]
[1728417059253,0.40997,2440.3,2440.2,0.40997]
[1728417059549,6.17776,2440.4,2440.3,0.40997]
[1728417060045,3.2078,2440.7,2440.6,0.40991]
[1728417060444,3.2078,2440.7,2440.6,4.50751]
[1728417060946,2.56,2441.2,2440.6,4.0976]
[1728417060947,0.40988,2440.9,2440.6,4.0976]
[1728417061147,0.40988,2440.9,2440.8,0.40988]
[1728417063040,0.40987,2440.9,2440.8,0.40988]
[1728417064545,0.40985,2441.0,2440.9,0.40986]
[1728417066447,0.40987,2440.9,2440.8,0.40987]
[1728417067041,0.40987,2440.9,2440.3,0.095]
[1728417067042,5.12147,2440.9,2440.3,0.095]
[1728417067249,5.7678,2441.0,2440.4,0.40994]
[1728417067250,0.40994,2440.5,2440.4,0.40994]
[1728417067448,0.40995,2440.4,2440.3,0.40995]
[1728417067637,3.7257,2440.8,2440.2,0.8149]
[1728417067841,3.7257,2440.8,2440.7,0.4099]
[1728417067842,1.18068,2440.8,2440.7,0.4099]
[1728417068137,2.56,2441.1,2440.6,1.02477]
[1728417068340,0.40987,2440.9,2440.8,0.40987]
[1728417068745,0.40986,2441.0,2440.9,0.40986]
[1728417070637,2.56,2441.1,2440.7,1.2096]
[1728417070943,0.40983,2441.1,2441.0,0.40985]
[1728417071247,0.40985,2441.0,2440.9,0.40985]
[1728417072848,5.7678,2441.1,2440.5,0.095]
[1728417073154,0.40988,2440.9,2440.8,0.40987]
[1728417074342,0.4099,2440.8,2440.7,0.40989]
[1728417074951,0.40988,2440.9,2440.8,0.40988]
[1728417075148,4.37399,2441.1,2440.6,1.02478]
[1728417075346,0.40986,2441.0,2440.9,0.40985]
[1728417076745,0.40986,2441.0,2440.5,1.52233]
[1728417076951,0.40989,2440.8,2440.7,0.40988]
[1728417077450,0.40986,2441.0,2440.5,1.42733]
[1728417077753,0.40988,2440.9,2440.8,0.40986]
[1728417078154,0.40988,2440.9,2440.6,1.02478]
[1728417078155,0.40992,2440.7,2440.6,0.4099]
[1728417078345,3.9972,2441.1,2440.5,1.02482]
[1728417078346,4.37401,2441.1,2440.5,1.02482]
[1728417078548,0.40986,2441.0,2440.9,0.40985]
[1728417079849,0.40991,2440.8,2440.7,0.40989]
[1728417080052,0.40991,2440.6,2440.5,3.3028]
[1728417080252,3.7749,2440.7,2440.2,0.095]
[1728417080557,4.79969,2440.7,2440.1,2.48756583]
[1728417080759,0.40994,2440.5,2440.4,0.40993]
[1728417080945,0.40995,2440.5,2440.4,0.40994]
[1728417081146,0.40993,2440.6,2440.5,0.40991]
[1728417081350,0.40993,2440.6,2440.5,0.40992]
[1728417081555,0.40994,2440.5,2440.4,0.40993]
[1728417081753,0.40996,2440.4,2440.3,0.40995]
[1728417082056,4.79968,2440.7,2440.1,1.06276583]
[1728417082255,1.22188,2440.3,2440.2,0.40998]
[1728417082449,0.8119,2440.3,2440.2,0.40998]
[1728417082646,1.22187,2440.3,2440.2,0.40998]
[1728417084360,0.4185,2440.7,2440.4,0.40993]
[1728417084558,0.40994,2440.5,2440.4,0.40993]
[1728417086664,0.40998,2440.3,2440.2,0.40997]
[1728417086962,0.40994,2440.5,2440.1,0.40999]
[1728417086963,0.41,2440.2,2440.1,0.40999]
[1728417087159,0.41001,2440.1,2440.0,0.41]
[1728417087459,0.8125,2440.1,2440.0,0.41]
[1728417087659,1.2225,2440.1,2440.0,0.41]
[1728417087861,0.41004,2439.9,2439.8,0.41004]
[1728417089658,0.41005,2439.8,2439.7,1.06325342]
[1728417090354,0.41005,2439.8,2439.7,1.47332342]
[1728417090559,0.80295,2439.8,2439.7,1.47332342]
[1728417090758,0.41003,2440.0,2439.9,0.41002]
[1728417090951,0.8125,2440.1,2440.0,0.41002]
[1728417091459,1.2225,2440.1,2440.0,0.41002]
[1728417092056,0.8125,2440.1,2440.0,0.41002]
[1728417092254,1.2225,2440.1,2440.0,0.41002]
[1728417093464,0.8125,2440.1,2440.0,0.41002]
[1728417093660,0.3929,2440.4,2439.8,4.62723]
[1728417093864,0.80286,2440.4,2440.3,0.40997]
[1728417094057,0.3929,2440.4,2440.3,0.40997]
[1728417094262,0.3929,2440.4,2440.0,1.02503]
[1728417094562,0.40998,2440.3,2440.2,0.40997]
[1728417095163,0.80286,2440.4,2440.3,0.40997]
[1728417095361,0.40998,2440.3,2440.2,0.40997]
[1728417096362,0.40998,2440.3,2440.2,0.40998]
[1728417097165,0.40998,2440.3,2440.0,0.41]
[1728417097166,0.41001,2440.1,2440.0,0.41]
[1728417097861,0.41,2440.2,2440.1,0.40998]
[1728417105173,0.3929,2440.4,2439.9,1.41609]
[1728417105174,0.40998,2440.3,2440.2,0.40997]
[1728417105377,0.80285,2440.4,2440.3,0.40997]
[1728417105578,1.22634,2440.5,2440.4,0.40995]
[1728417105779,0.8164,2440.5,2440.2,0.4186]
[1728417105978,0.40997,2440.4,2440.3,0.40995]
[1728417107077,1.02492,2440.3,2440.0,0.40999]
[1728417107278,0.79319,2440.2,2440.1,0.40998]
[1728417108779,0.40998,2440.2,2440.1,0.40998]
[1728417109081,3.3764,2440.5,2440.1,4.0984]
[1728417109082,0.8164,2440.5,2440.1,4.0984]
[1728417109289,1.22634,2440.5,2440.4,0.40995]
[1728417109889,3.61772,2440.6,2440.5,0.40993]
[1728417110282,3.2078,2440.6,2440.5,0.40993]
[1728417111593,0.8315,2441.0,2440.5,4.0976]
[1728417111880,4.2324,2441.1,2440.4,2.56]
[1728417111881,3.61764,2441.1,2441.0,0.40985]
[1728417113274,0.40984,2441.1,2441.0,0.40985]
[1728417113481,0.40986,2441.0,2440.9,0.40985]
[1728417113781,0.40985,2441.0,2440.9,0.40985]
[1728417118286,0.40991,2440.7,2440.6,0.4099]
[1728417118487,0.40989,2440.8,2440.7,0.40988]
[1728417118692,1.25239,2440.8,2440.7,0.40988]
[1728417120191,0.8425,2440.8,2440.7,0.40988]
[1728417120891,0.81498,2440.9,2440.5,1.41783]
[1728417121193,0.81498,2440.9,2440.8,0.40988]
[1728417122591,0.81498,2440.9,2440.7,0.4186]
[1728417122592,0.40988,2440.8,2440.7,0.82849]
[1728417122791,0.40988,2440.8,2440.5,0.40993]
[1728417122792,0.40993,2440.6,2440.5,0.40993]
[1728417123892,0.4054,2440.7,2440.6,0.40991]
[1728417123893,0.81531,2440.7,2440.6,0.40991]
[1728417124090,0.4051,2440.9,2440.5,1.02483]
[1728417124296,0.40988,2440.9,2440.8,0.40988]
[1728417124695,0.4099,2440.8,2440.7,0.40989]
[1728417125997,1.02466,2441.0,2440.5,1.02483]
[1728417126198,0.40988,2440.9,2440.8,0.40987]
[1728417126497,0.40988,2440.9,2440.4,0.50494]
[1728417126498,0.40993,2440.5,2440.4,0.50494]
[1728417126690,0.40993,2440.5,2440.4,0.40994]
[1728417127089,0.81372,2440.6,2440.5,0.40993]
[1728417127290,0.40988,2440.9,2440.8,0.40985]
[1728417127497,0.40987,2441.0,2440.9,0.40985]
[1728417128294,0.40987,2441.0,2440.7,0.8048]
[1728417128488,3.98839,2441.1,2440.7,0.8048]
[1728417128696,0.40988,2440.9,2440.8,0.40986]
[1728417129499,0.40988,2440.9,2440.7,0.8048]
[1728417129500,0.40988,2440.8,2440.7,1.21469]
[1728417129999,0.40987,2441.0,2440.9,0.40985]
[1728417130197,0.4038,2441.1,2440.7,0.8048]
[1728417130395,0.81364,2441.1,2441.0,0.40985]
[1728417130698,0.40986,2441.0,2440.9,0.40985]
[1728417133301,0.40988,2440.9,2440.8,0.40987]
[1728417133498,0.40988,2440.8,2440.7,1.21469]
[1728417133695,0.40988,2440.8,2440.7,0.81909]
[1728417134093,0.4099,2440.7,2440.6,3.61771]
[1728417134699,0.40989,2440.8,2440.7,0.40988]
[1728417136006,0.4099,2440.7,2440.6,3.61771]
[1728417136304,1.44226518,2440.7,2440.6,0.40991]
[1728417136505,1.44226518,2440.7,2440.5,0.806]
[1728417136697,1.44226518,2440.7,2440.2,3.2078]
[1728417136999,3.2078,2440.5,2440.4,0.40995]
[1728417137192,4.24016518,2440.5,2439.9,2.56]
[1728417137396,0.40996,2440.4,2440.1,1.025]
[1728417137596,0.40996,2440.4,2439.9,1.02508]
[1728417137796,0.40996,2440.4,2440.3,0.40995]
[1728417138105,3.2078,2440.2,2440.1,0.41]
[1728417138701,3.61778,2440.2,2440.1,0.41]
[1728417138900,3.6153,2440.2,2439.8,3.58511]
[1728417139105,3.6153,2440.2,2440.0,0.41]
[1728417139106,0.41001,2440.1,2440.0,0.41]
[1728417139407,4.02529,2440.2,2440.1,0.41]
[1728417140598,3.2078,2440.2,2440.1,0.41]
[1728417140795,3.2078,2440.2,2440.1,0.34424521]
[1728417141704,3.2078,2440.2,2439.8,0.59574496]
[1728417141899,3.2078,2440.2,2440.1,0.41]
[1728417142899,3.2078,2440.2,2440.1,3.35851729]
[1728417143102,3.61778,2440.2,2440.1,3.35851729]
[1728417143296,3.61778,2440.2,2440.1,0.41]
[1728417143597,3.61778,2440.2,2440.1,2.33295056]
[1728417143598,3.2078,2440.2,2440.1,2.33295056]
[1728417143804,3.2078,2440.2,2440.1,3.35852419]
[1728417144708,3.61778,2440.2,2440.1,1.05098352]
[1728417144904,3.2078,2440.2,2440.1,0.41]
[1728417145306,3.2078,2440.2,2439.7,2.24236]
[1728417145505,0.41003,2440.0,2439.8,0.64100273]
[1728417145701,0.41003,2440.0,2439.9,0.41003]
[1728417146909,0.7898,2440.1,2440.0,0.41002]
[1728417147105,3.2078,2440.2,2440.1,0.41]
[1728417147509,3.2078,2440.2,2440.1,4.5084]
[1728417148106,3.2078,2440.2,2440.1,0.41]
[1728417148308,3.61778,2440.2,2440.1,0.41]
[1728417148509,3.2078,2440.2,2440.1,0.41]
[1728417149916,3.61778,2440.2,2440.1,0.41]
[1728417150424,3.2078,2440.2,2440.1,0.41]
[1728417150917,3.61778,2440.2,2440.1,0.41]
[1728417151216,3.2078,2440.2,2440.1,0.41]
[1728417151611,3.2078,2440.2,2439.4,2.14553]
[1728417151812,3.2078,2440.2,2439.8,0.41005]
[1728417151813,3.2078,2439.9,2439.8,0.41005]
[1728417152015,1.20721,2440.1,2440.0,0.41002]
[1728417152513,3.2078,2440.2,2440.0,4.0984]
[1728417152710,3.2078,2440.2,2440.1,0.41]
[1728417152908,0.801,2440.4,2440.3,0.40997]
[1728417153209,3.61772,2440.6,2440.2,0.7917]
[1728417153409,3.61772,2440.6,2440.5,0.40993]
[1728417153623,0.8041,2440.7,2440.2,4.77865]
[1728417153807,0.40992,2440.6,2440.2,4.77865]
[1728417154006,0.40992,2440.6,2440.5,0.40992]
[1728417154411,1.21401,2440.7,2440.6,0.40991]
[1728417154916,0.40992,2440.6,2440.5,0.40992]
[1728417155117,3.61772,2440.6,2440.5,0.40992]
[1728417155313,3.2078,2440.6,2440.2,0.7917]
[1728417155511,3.2078,2440.3,2440.2,0.40998]
[1728417155913,4.01507,2440.3,2440.2,0.40998]
[1728417156310,3.6051,2440.3,2440.2,0.40998]
[1728417156707,0.40999,2440.2,2440.1,0.40999]
[1728417156912,0.82529,2440.2,2440.1,0.40999]
[1728417157617,0.4153,2440.2,2440.1,0.40999]
[1728417159413,0.82528,2440.2,2440.1,0.40999]
[1728417159613,0.4153,2440.2,2440.1,0.40999]
[1728417160217,0.82528,2440.2,2440.1,0.40999]
[1728417160520,7.0737,2440.2,2439.2,0.11]
[1728417160719,0.41006,2439.8,2439.7,0.41005]
[1728417161616,0.82196,2439.8,2439.7,0.41005]
[1728417163715,1.22696,2439.8,2439.7,0.41005]
[1728417164911,0.41007,2439.7,2439.6,0.41007]
[1728417165113,0.8169,2439.8,2439.7,0.41007]
[1728417165512,1.22695,2439.8,2439.7,0.41007]
[1728417166209,0.41005,2439.8,2439.7,0.41007]
[1728417166424,0.41004,2439.9,2439.8,0.41004]
[1728417167315,0.41006,2439.8,2439.7,0.41006]
[1728417167716,4.23285,2440.0,2439.8,0.41004]
[1728417167717,0.41004,2439.9,2439.8,0.41004]
[1728417168221,3.61783,2440.0,2439.9,0.41003]
[1728417168610,0.41004,2439.9,2439.8,0.41004]
[1728417175020,3.61783,2440.0,2439.9,0.41003]
[1728417175221,0.792,2440.1,2440.0,0.41002]
[1728417175412,3.2078,2440.3,2440.2,0.40998]
[1728417178021,0.40994,2440.5,2440.4,0.40995]
[1728417179323,0.40996,2440.4,2440.3,0.40995]
[1728417179623,3.2078,2440.4,2440.3,0.40997]
[1728417180318,3.2078,2440.4,2440.1,1.82679]
[1728417180525,3.2078,2440.3,2440.2,0.40998]
[1728417181022,3.2078,2440.3,2440.2,0.80168]
[1728417181624,3.3028,2441.0,2440.2,10.4893]
[1728417181818,0.50485,2441.0,2440.9,0.40986]
[1728417182028,4.3907,2441.1,2441.0,0.40985]
[1728417182324,3.67944,2441.5,2440.8,1.0247]
[1728417182325,0.40982,2441.2,2440.8,1.0247]
[1728417182622,3.2078,2441.2,2441.1,0.40983]
[1728417185518,1.11938,2441.6,2441.1,12.6568]
[1728417185519,0.095,2441.6,2441.1,12.6568]
[1728417185718,0.40976,2441.6,2441.5,0.40976]
[1728417185923,0.83014,2441.7,2441.6,0.40975]
[1728417186531,0.4204,2441.7,2441.6,0.40975]
[1728417187130,0.83013,2441.7,2441.6,0.40975]
[1728417187330,0.4204,2441.7,2441.6,0.40975]
[1728417188035,0.83013,2441.7,2441.6,0.40975]
[1728417188534,0.4204,2441.7,2441.6,0.40975]
[1728417188735,0.83013,2441.7,2441.6,0.40975]
[1728417189137,0.4204,2441.7,2441.3,0.4097]
[1728417189328,0.40976,2441.6,2441.3,0.4097]